[Event "Titled Tuesday Blitz December 27 Early 2022"]
[White "Bachmann, Axel"]
[Black "Yuan, Qingyu"]
[WhiteFideId "3700488"]
[BlackFideId "8609772"]
[WhiteElo "2604"]
[BlackElo "2373"]
[Result "0-1"]
[Round "11"]
[TimeControl "180+2"]
[Date "2022.12.27"]
[WhiteClock "0:00:02"]
[BlackClock "0:00:33"]

1. Nf3 {[%clk 0:02:52]}  d5 {[%clk 0:02:59]} 2. e3 {[%clk 0:02:51]}  Nf6 {[%clk 0:02:59]} 3. c4 {[%clk 0:02:51]}  e6 {[%clk 0:02:59]} 4. b3 {[%clk 0:02:51]}  Be7 {[%clk 0:02:58]} 5. Bb2 {[%clk 0:02:51]}  O-O {[%clk 0:02:58]} 6. Nc3 {[%clk 0:02:52]}  b6 {[%clk 0:02:58]} 7. cxd5 {[%clk 0:02:52]}  Nxd5 {[%clk 0:02:59]} 8. Nxd5 {[%clk 0:02:51]}  exd5 {[%clk 0:02:48]} 9. Rc1 {[%clk 0:02:49]}  c5 {[%clk 0:02:45]} 10. d4 {[%clk 0:02:46]}  Bb7 {[%clk 0:02:34]} 11. Be2 {[%clk 0:02:37]}  Nd7 {[%clk 0:02:34]} 12. O-O {[%clk 0:02:37]}  Rc8 {[%clk 0:02:32]} 13. h3 {[%clk 0:02:31]}  Re8 {[%clk 0:02:32]} 14. Bd3 {[%clk 0:02:29]}  Bd6 {[%clk 0:02:29]} 15. Qe2 {[%clk 0:02:18]}  Nf6 {[%clk 0:02:24]} 16. Rfd1 {[%clk 0:02:14]}  Ne4 {[%clk 0:02:19]} 17. Ba6 {[%clk 0:01:58]}  Qe7 {[%clk 0:02:08]} 18. Nd2 {[%clk 0:01:25]}  Bxa6 {[%clk 0:01:55]} 19. Qxa6 {[%clk 0:01:20]}  Nxf2 {[%clk 0:01:54]} 20. Re1 {[%clk 0:00:57]}  Qh4 {[%clk 0:01:16]} 21. Qe2 {[%clk 0:00:53]}  Ne4 {[%clk 0:00:52]} 22. Nf3 {[%clk 0:00:53]}  Qg3 {[%clk 0:00:50]} 23. dxc5 {[%clk 0:00:43]}  Bxc5 {[%clk 0:00:44]} 24. Bd4 {[%clk 0:00:37]}  Bd6 {[%clk 0:00:40]} 25. Rf1 {[%clk 0:00:04]}  h6 {[%clk 0:00:36]} 26. Rxc8 {[%clk 0:00:03]}  Rxc8 {[%clk 0:00:37]} 27. Qa6 {[%clk 0:00:02]}  Rc2 {[%clk 0:00:33]} 0-1


[Site "https://www.chess.com"]

[Event "Titled Tuesday Blitz December 27 Early 2022"]
[White "Bochnicka, Vladimir"]
[Black "Weetik, Vjacheslav"]
[WhiteFideId "14943450"]
[BlackFideId "4153472"]
[WhiteElo "2327"]
[BlackElo "2423"]
[Result "0-1"]
[Round "11"]
[TimeControl "180+2"]
[Date "2022.12.27"]
[WhiteClock "0:00:04"]
[BlackClock "0:00:05"]

1. e4 {[%clk 0:02:55]}  c6 {[%clk 0:03:00]} 2. d4 {[%clk 0:02:55]}  d5 {[%clk 0:03:00]} 3. e5 {[%clk 0:02:56]}  Bf5 {[%clk 0:03:00]} 4. h4 {[%clk 0:02:56]}  Qb6 {[%clk 0:03:00]} 5. Nf3 {[%clk 0:02:52]}  e6 {[%clk 0:02:55]} 6. Bd3 {[%clk 0:02:49]}  Bg4 {[%clk 0:02:48]} 7. c3 {[%clk 0:02:34]}  Nh6 {[%clk 0:02:42]} 8. O-O {[%clk 0:02:19]}  c5 {[%clk 0:02:33]} 9. Be3 {[%clk 0:02:03]}  Nc6 {[%clk 0:02:30]} 10. Nbd2 {[%clk 0:02:00]}  cxd4 {[%clk 0:02:04]} 11. Bxd4 {[%clk 0:01:51]}  Bc5 {[%clk 0:01:43]} 12. Qa4 {[%clk 0:01:39]}  O-O {[%clk 0:01:34]} 13. Bxc5 {[%clk 0:01:27]}  Qxc5 {[%clk 0:01:34]} 14. Nb3 {[%clk 0:01:16]}  Qe7 {[%clk 0:01:30]} 15. Ng5 {[%clk 0:01:05]}  Bf5 {[%clk 0:01:16]} 16. Bxf5 {[%clk 0:00:58]}  Nxf5 {[%clk 0:01:16]} 17. Rfe1 {[%clk 0:00:55]}  Rac8 {[%clk 0:00:56]} 18. Qg4 {[%clk 0:00:44]}  b5 {[%clk 0:00:23]} 19. Rac1 {[%clk 0:00:33]}  b4 {[%clk 0:00:22]} 20. Nd4 {[%clk 0:00:27]}  Ncxd4 {[%clk 0:00:20]} 21. cxd4 {[%clk 0:00:28]}  b3 {[%clk 0:00:13]} 22. axb3 {[%clk 0:00:26]}  Qb4 {[%clk 0:00:13]} 23. Nf3 {[%clk 0:00:17]}  Qxb3 {[%clk 0:00:12]} 24. h5 {[%clk 0:00:16]}  Qxb2 {[%clk 0:00:08]} 25. Rxc8 {[%clk 0:00:16]}  Rxc8 {[%clk 0:00:09]} 26. Qf4 {[%clk 0:00:10]}  h6 {[%clk 0:00:06]} 27. g4 {[%clk 0:00:10]}  Ne7 {[%clk 0:00:06]} 28. g5 {[%clk 0:00:10]}  Nf5 {[%clk 0:00:06]} 29. gxh6 {[%clk 0:00:10]}  Nxh6 {[%clk 0:00:06]} 30. Ng5 {[%clk 0:00:07]}  Qc2 {[%clk 0:00:02]} 31. Kh1 {[%clk 0:00:03]}  Qf5 {[%clk 0:00:03]} 32. Qxf5 {[%clk 0:00:03]}  Nxf5 {[%clk 0:00:03]} 33. Ra1 {[%clk 0:00:04]}  Ra8 {[%clk 0:00:02]} 34. Ra6 {[%clk 0:00:03]}  Nxd4 {[%clk 0:00:02]} 35. f4 {[%clk 0:00:03]}  Nf5 {[%clk 0:00:02]} 36. Kg2 {[%clk 0:00:01]}  d4 {[%clk 0:00:02]} 37. Kf3 {[%clk 0:00:02]}  Rd8 {[%clk 0:00:03]} 38. Ke4 {[%clk 0:00:01]}  d3 {[%clk 0:00:03]} 39. Nf3 {[%clk 0:00:02]}  d2 {[%clk 0:00:04]} 40. Nxd2 {[%clk 0:00:02]}  Rxd2 {[%clk 0:00:04]} 41. Rxa7 {[%clk 0:00:03]}  Re2+ {[%clk 0:00:04]} 42. Kd3 {[%clk 0:00:03]}  Re3+ {[%clk 0:00:04]} 43. Kd2 {[%clk 0:00:04]}  Re4 {[%clk 0:00:05]} 44. Ra8+ {[%clk 0:00:04]}  Kh7 {[%clk 0:00:05]} 0-1


[Site "https://www.chess.com"]

[Event "Titled Tuesday Blitz December 27 Early 2022"]
[White "Bringas Gomez, Artai"]
[Black "Warchol, Kamil"]
[WhiteFideId "24534064"]
[BlackFideId "21858241"]
[WhiteElo "2206"]
[BlackElo "2173"]
[Result "1-0"]
[Round "11"]
[TimeControl "180+2"]
[Date "2022.12.27"]
[WhiteClock "0:00:47"]
[BlackClock "0:00:01"]

1. e4 {[%clk 0:03:00]}  c5 {[%clk 0:02:59]} 2. a3 {[%clk 0:03:00]}  Nc6 {[%clk 0:02:42]} 3. b4 {[%clk 0:03:00]}  e6 {[%clk 0:02:23]} 4. Nf3 {[%clk 0:02:56]}  d5 {[%clk 0:02:22]} 5. exd5 {[%clk 0:02:55]}  exd5 {[%clk 0:02:22]} 6. bxc5 {[%clk 0:02:55]}  Bxc5 {[%clk 0:02:21]} 7. d4 {[%clk 0:02:55]}  Bb6 {[%clk 0:02:16]} 8. c4 {[%clk 0:02:43]}  Nf6 {[%clk 0:02:06]} 9. Nc3 {[%clk 0:02:41]}  O-O {[%clk 0:01:52]} 10. c5 {[%clk 0:02:09]}  Ba5 {[%clk 0:01:44]} 11. Bd2 {[%clk 0:02:09]}  Bg4 {[%clk 0:01:39]} 12. Be2 {[%clk 0:02:08]}  Bxf3 {[%clk 0:01:36]} 13. Bxf3 {[%clk 0:02:09]}  Nxd4 {[%clk 0:01:35]} 14. O-O {[%clk 0:02:09]}  Nxf3+ {[%clk 0:01:12]} 15. Qxf3 {[%clk 0:02:10]}  Ne4 {[%clk 0:01:07]} 16. Nxe4 {[%clk 0:01:50]}  dxe4 {[%clk 0:01:02]} 17. Bxa5 {[%clk 0:01:50]}  exf3 {[%clk 0:01:00]} 18. Bxd8 {[%clk 0:01:51]}  Rfxd8 {[%clk 0:00:59]} 19. Rab1 {[%clk 0:01:49]}  fxg2 {[%clk 0:00:50]} 20. Rfe1 {[%clk 0:01:49]}  Rd7 {[%clk 0:00:46]} 21. Re3 {[%clk 0:01:44]}  Rc8 {[%clk 0:00:41]} 22. Reb3 {[%clk 0:01:34]}  g6 {[%clk 0:00:05]} 23. Rxb7 {[%clk 0:01:33]}  Rxb7 {[%clk 0:00:04]} 24. Rxb7 {[%clk 0:01:33]}  Rxc5 {[%clk 0:00:04]} 25. Rxa7 {[%clk 0:01:31]}  Rg5 {[%clk 0:00:03]} 26. a4 {[%clk 0:01:28]}  h5 {[%clk 0:00:03]} 27. a5 {[%clk 0:01:27]}  Rg4 {[%clk 0:00:03]} 28. a6 {[%clk 0:01:24]}  Kg7 {[%clk 0:00:03]} 29. Rb7 {[%clk 0:01:23]}  Ra4 {[%clk 0:00:02]} 30. a7 {[%clk 0:01:22]}  Kf6 {[%clk 0:00:03]} 31. Kxg2 {[%clk 0:01:22]}  Ke6 {[%clk 0:00:03]} 32. f4 {[%clk 0:01:09]}  Kf6 {[%clk 0:00:03]} 33. Kg3 {[%clk 0:01:08]}  Ke6 {[%clk 0:00:03]} 34. Kf3 {[%clk 0:01:01]}  Kf6 {[%clk 0:00:03]} 35. Ke3 {[%clk 0:01:01]}  Ra2 {[%clk 0:00:03]} 36. Ke4 {[%clk 0:00:59]}  Ke6 {[%clk 0:00:04]} 37. Kd4 {[%clk 0:00:55]}  Kf6 {[%clk 0:00:04]} 38. Kd5 {[%clk 0:00:55]}  Kg7 {[%clk 0:00:04]} 39. Kc6 {[%clk 0:00:51]}  Kf6 {[%clk 0:00:03]} 40. Kb6 {[%clk 0:00:49]}  Kg7 {[%clk 0:00:02]} 41. Rb8 {[%clk 0:00:48]}  Rb2+ {[%clk 0:00:01]} 42. Kc5 {[%clk 0:00:47]}  Rc2+ {[%clk 0:00:01]} 43. Kd4 {[%clk 0:00:48]}  Rd2+ {[%clk 0:00:01]} 44. Ke3 {[%clk 0:00:47]}  Rb2 {[%clk 0:00:01]} 45. Rxb2 {[%clk 0:00:47]} 1-0


[Site "https://www.chess.com"]

[Event "Titled Tuesday Blitz December 27 Early 2022"]
[White "Cardona, Liulia"]
[Black "Ezat, Mohamed"]
[WhiteFideId "3505189"]
[BlackFideId "10600906"]
[WhiteElo "2115"]
[BlackElo "2402"]
[Result "0-1"]
[Round "11"]
[TimeControl "180+2"]
[Date "2022.12.27"]
[WhiteClock "0:00:07"]
[BlackClock "0:01:14"]

1. e4 {[%clk 0:03:00]}  g6 {[%clk 0:02:54]} 2. d4 {[%clk 0:03:00]}  Bg7 {[%clk 0:02:29]} 3. Nc3 {[%clk 0:03:00]}  c6 {[%clk 0:02:28]} 4. Be3 {[%clk 0:02:50]}  d5 {[%clk 0:02:28]} 5. exd5 {[%clk 0:02:49]}  cxd5 {[%clk 0:02:28]} 6. Bb5+ {[%clk 0:02:48]}  Bd7 {[%clk 0:02:24]} 7. Bxd7+ {[%clk 0:02:43]}  Qxd7 {[%clk 0:02:23]} 8. Nf3 {[%clk 0:02:43]}  Nc6 {[%clk 0:02:22]} 9. Qd2 {[%clk 0:02:40]}  e6 {[%clk 0:02:22]} 10. Bf4 {[%clk 0:02:32]}  Nge7 {[%clk 0:02:22]} 11. O-O {[%clk 0:02:25]}  O-O {[%clk 0:02:14]} 12. Ne5 {[%clk 0:02:15]}  Nxe5 {[%clk 0:02:12]} 13. dxe5 {[%clk 0:02:15]}  Nc6 {[%clk 0:02:12]} 14. Rfe1 {[%clk 0:02:14]}  Na5 {[%clk 0:02:11]} 15. b3 {[%clk 0:02:09]}  Rfc8 {[%clk 0:02:09]} 16. Ne2 {[%clk 0:02:04]}  Nc6 {[%clk 0:02:07]} 17. Nc1 {[%clk 0:01:52]}  Rc7 {[%clk 0:02:05]} 18. Nd3 {[%clk 0:01:50]}  Rac8 {[%clk 0:02:03]} 19. c3 {[%clk 0:01:40]}  a6 {[%clk 0:01:58]} 20. h4 {[%clk 0:01:38]}  h5 {[%clk 0:01:56]} 21. Re3 {[%clk 0:01:27]}  Na7 {[%clk 0:01:55]} 22. Ne1 {[%clk 0:01:19]}  Nb5 {[%clk 0:01:54]} 23. Rc1 {[%clk 0:01:08]}  d4 {[%clk 0:01:54]} 24. Rd3 {[%clk 0:00:45]}  dxc3 {[%clk 0:01:53]} 25. Qe3 {[%clk 0:00:45]}  Qe7 {[%clk 0:01:46]} 26. a4 {[%clk 0:00:42]}  Na3 {[%clk 0:01:40]} 27. Nf3 {[%clk 0:00:36]}  c2 {[%clk 0:01:38]} 28. Bg5 {[%clk 0:00:34]}  Qb4 {[%clk 0:01:38]} 29. Qf4 {[%clk 0:00:34]}  Qxf4 {[%clk 0:01:37]} 30. Bxf4 {[%clk 0:00:34]}  Rc3 {[%clk 0:01:35]} 31. Rxc3 {[%clk 0:00:24]}  Rxc3 {[%clk 0:01:34]} 32. Nd4 {[%clk 0:00:23]}  Bf8 {[%clk 0:01:28]} 33. Bd2 {[%clk 0:00:17]}  Rd3 {[%clk 0:01:28]} 34. Be3 {[%clk 0:00:16]}  Rd1+ {[%clk 0:01:28]} 35. Kh2 {[%clk 0:00:14]}  Bc5 {[%clk 0:01:22]} 36. Nxc2 {[%clk 0:00:07]}  Rxc1 {[%clk 0:01:14]} 0-1


[Site "https://www.chess.com"]

[Event "Titled Tuesday Blitz December 27 Early 2022"]
[White "Cella, Glaucio Dalla Cortt"]
[Black "Roque Sola, Gisela"]
[WhiteFideId "2119455"]
[BlackFideId "5120241"]
[WhiteElo "1894"]
[BlackElo "2061"]
[Result "1-0"]
[Round "11"]
[TimeControl "180+2"]
[Date "2022.12.27"]
[WhiteClock "0:01:35"]
[BlackClock "0:01:11"]

1. e4 {[%clk 0:02:52]}  c5 {[%clk 0:02:58]} 2. Nf3 {[%clk 0:02:52]}  Nc6 {[%clk 0:02:58]} 3. c3 {[%clk 0:02:53]}  d5 {[%clk 0:02:57]} 4. exd5 {[%clk 0:02:53]}  Qxd5 {[%clk 0:02:57]} 5. d4 {[%clk 0:02:53]}  cxd4 {[%clk 0:02:58]} 6. Na3 {[%clk 0:02:50]}  e6 {[%clk 0:02:49]} 7. Nb5 {[%clk 0:02:48]}  Bd6 {[%clk 0:02:37]} 8. Bc4 {[%clk 0:02:38]}  Qe4+ {[%clk 0:02:37]} 9. Be3 {[%clk 0:02:33]}  Bb8 {[%clk 0:02:33]} 10. Nbxd4 {[%clk 0:02:30]}  Nf6 {[%clk 0:02:26]} 11. O-O {[%clk 0:02:26]}  O-O {[%clk 0:02:24]} 12. Re1 {[%clk 0:02:25]}  Qg4 {[%clk 0:02:21]} 13. h3 {[%clk 0:02:21]}  Qh5 {[%clk 0:02:20]} 14. Nxc6 {[%clk 0:02:21]}  bxc6 {[%clk 0:02:19]} 15. Qa4 {[%clk 0:02:10]}  Nd5 {[%clk 0:02:13]} 16. Qxc6 {[%clk 0:02:06]}  Nxe3 {[%clk 0:02:00]} 17. Rxe3 {[%clk 0:02:07]}  Bf4 {[%clk 0:01:59]} 18. Qxa8 {[%clk 0:02:00]}  Bxe3 {[%clk 0:01:59]} 19. fxe3 {[%clk 0:02:01]}  Ba6 {[%clk 0:01:56]} 20. Qc6 {[%clk 0:01:55]}  Bc8 {[%clk 0:01:46]} 21. Rd1 {[%clk 0:01:50]}  e5 {[%clk 0:01:45]} 22. Qc7 {[%clk 0:01:40]}  e4 {[%clk 0:01:39]} 23. Rd8 {[%clk 0:01:36]}  exf3 {[%clk 0:01:10]} 24. Rxf8+ {[%clk 0:01:36]}  Kxf8 {[%clk 0:01:11]} 25. Qd8# {[%clk 0:01:35]} 1-0


[Site "https://www.chess.com"]

[Event "Titled Tuesday Blitz December 27 Early 2022"]
[White "Cnejev, Vladimir-Alexandru"]
[Black "Bryakin, Mikhail"]
[WhiteFideId "1260898"]
[BlackFideId "4165314"]
[WhiteElo "2374"]
[BlackElo "2455"]
[Result "1/2-1/2"]
[Round "11"]
[TimeControl "180+2"]
[Date "2022.12.27"]
[WhiteClock "0:00:19"]
[BlackClock "0:00:31"]

1. e4 {[%clk 0:02:55]}  c5 {[%clk 0:02:54]} 2. Nf3 {[%clk 0:02:55]}  d6 {[%clk 0:02:52]} 3. Bb5+ {[%clk 0:02:55]}  Nd7 {[%clk 0:02:52]} 4. O-O {[%clk 0:02:55]}  a6 {[%clk 0:02:51]} 5. Bd3 {[%clk 0:02:55]}  g6 {[%clk 0:02:51]} 6. Re1 {[%clk 0:02:56]}  Bg7 {[%clk 0:02:52]} 7. c3 {[%clk 0:02:56]}  e5 {[%clk 0:02:52]} 8. Bc2 {[%clk 0:02:56]}  Ne7 {[%clk 0:02:51]} 9. d4 {[%clk 0:02:57]}  O-O {[%clk 0:02:51]} 10. a4 {[%clk 0:02:52]}  b6 {[%clk 0:02:51]} 11. Nbd2 {[%clk 0:02:46]}  Bb7 {[%clk 0:02:51]} 12. d5 {[%clk 0:02:46]}  h6 {[%clk 0:02:50]} 13. c4 {[%clk 0:02:38]}  a5 {[%clk 0:02:29]} 14. Nf1 {[%clk 0:02:34]}  Bc8 {[%clk 0:02:29]} 15. N3d2 {[%clk 0:02:32]}  Nf6 {[%clk 0:02:29]} 16. Ne3 {[%clk 0:02:22]}  Kh7 {[%clk 0:02:29]} 17. Rf1 {[%clk 0:02:12]}  h5 {[%clk 0:02:29]} 18. Nf3 {[%clk 0:01:52]}  Bh6 {[%clk 0:02:28]} 19. h4 {[%clk 0:01:52]}  Ng4 {[%clk 0:02:25]} 20. Ng5+ {[%clk 0:01:49]}  Kg7 {[%clk 0:02:21]} 21. Nxg4 {[%clk 0:01:46]}  Bxg4 {[%clk 0:02:22]} 22. f3 {[%clk 0:01:46]}  Bd7 {[%clk 0:02:22]} 23. f4 {[%clk 0:01:41]}  f6 {[%clk 0:02:12]} 24. fxe5 {[%clk 0:01:39]}  dxe5 {[%clk 0:02:09]} 25. Nf3 {[%clk 0:01:33]}  Bxc1 {[%clk 0:02:09]} 26. Qxc1 {[%clk 0:01:23]}  Nc8 {[%clk 0:02:09]} 27. Rf2 {[%clk 0:01:15]}  Nd6 {[%clk 0:02:09]} 28. Bd3 {[%clk 0:01:15]}  Bg4 {[%clk 0:02:09]} 29. Qc2 {[%clk 0:01:05]}  Qe7 {[%clk 0:02:06]} 30. Raf1 {[%clk 0:01:04]}  Rae8 {[%clk 0:02:03]} 31. b3 {[%clk 0:01:03]}  f5 {[%clk 0:01:59]} 32. Ng5 {[%clk 0:00:57]}  f4 {[%clk 0:01:56]} 33. Be2 {[%clk 0:00:52]}  Bd7 {[%clk 0:01:55]} 34. Qc3 {[%clk 0:00:49]}  Rf6 {[%clk 0:01:55]} 35. g3 {[%clk 0:00:38]}  f3 {[%clk 0:00:53]} 36. Rxf3 {[%clk 0:00:35]}  Rxf3 {[%clk 0:00:50]} 37. Rxf3 {[%clk 0:00:32]}  Rf8 {[%clk 0:00:47]} 38. Rxf8 {[%clk 0:00:31]}  Kxf8 {[%clk 0:00:48]} 39. Qf3+ {[%clk 0:00:29]}  Kg7 {[%clk 0:00:48]} 40. Qf2 {[%clk 0:00:26]}  Ne8 {[%clk 0:00:47]} 41. Bf3 {[%clk 0:00:20]}  Nf6 {[%clk 0:00:47]} 42. Qe3 {[%clk 0:00:19]}  Bc8 {[%clk 0:00:47]} 43. Qe2 {[%clk 0:00:19]}  Bd7 {[%clk 0:00:47]} 44. Qe3 {[%clk 0:00:20]}  Qd8 {[%clk 0:00:48]} 45. Qe2 {[%clk 0:00:20]}  Qc8 {[%clk 0:00:49]} 46. Qb2 {[%clk 0:00:20]}  Qc7 {[%clk 0:00:48]} 47. Qd2 {[%clk 0:00:20]}  Ne8 {[%clk 0:00:48]} 48. Qe3 {[%clk 0:00:19]}  Nd6 {[%clk 0:00:48]} 49. Qf2 {[%clk 0:00:20]}  Qd8 {[%clk 0:00:49]} 50. Be2 {[%clk 0:00:20]}  Qe7 {[%clk 0:00:49]} 51. Qe3 {[%clk 0:00:21]}  Bc8 {[%clk 0:00:49]} 52. Qf2 {[%clk 0:00:21]}  Ne8 {[%clk 0:00:49]} 53. Qe3 {[%clk 0:00:21]}  Nf6 {[%clk 0:00:49]} 54. Bf3 {[%clk 0:00:22]}  Bd7 {[%clk 0:00:42]} 55. Qf2 {[%clk 0:00:22]}  Ne8 {[%clk 0:00:39]} 56. Qe3 {[%clk 0:00:22]}  Nd6 {[%clk 0:00:40]} 57. Qd2 {[%clk 0:00:22]}  Kf8 {[%clk 0:00:37]} 58. Qf2 {[%clk 0:00:22]}  Ke8 {[%clk 0:00:37]} 59. Qe3 {[%clk 0:00:22]}  Kd8 {[%clk 0:00:37]} 60. Qd2 {[%clk 0:00:22]}  Kc7 {[%clk 0:00:38]} 61. Qf2 {[%clk 0:00:23]}  Kb7 {[%clk 0:00:37]} 62. Bg2 {[%clk 0:00:23]}  Bg4 {[%clk 0:00:35]} 63. Bf3 {[%clk 0:00:23]}  Bd7 {[%clk 0:00:35]} 64. Bg2 {[%clk 0:00:23]}  Kc7 {[%clk 0:00:36]} 65. Bf3 {[%clk 0:00:22]}  Ne8 {[%clk 0:00:36]} 66. Bg2 {[%clk 0:00:22]}  Nf6 {[%clk 0:00:36]} 67. Bf3 {[%clk 0:00:20]}  Bc8 {[%clk 0:00:36]} 68. Qe2 {[%clk 0:00:19]}  Qd7 {[%clk 0:00:33]} 69. Qb2 {[%clk 0:00:18]}  Qe7 {[%clk 0:00:31]} 70. Qf2 {[%clk 0:00:18]}  Bd7 {[%clk 0:00:31]} 71. Qe3 {[%clk 0:00:19]}  Kc8 {[%clk 0:00:31]} 72. Qf2 {[%clk 0:00:19]}  Ne8 {[%clk 0:00:32]} 73. Bg2 {[%clk 0:00:19]}  Nd6 {[%clk 0:00:32]} 74. Bf3 {[%clk 0:00:19]}  Kb7 {[%clk 0:00:31]} 1/2-1/2


[Site "https://www.chess.com"]

[Event "Titled Tuesday Blitz December 27 Early 2022"]
[White "Csonka, Balazs"]
[Black "Hnydiuk, Aleksander"]
[WhiteFideId "742910"]
[BlackFideId "1109057"]
[WhiteElo "2496"]
[BlackElo "2363"]
[Result "1/2-1/2"]
[Round "11"]
[TimeControl "180+2"]
[Date "2022.12.27"]
[WhiteClock "0:00:24"]
[BlackClock "0:00:57"]

1. d4 {[%clk 0:03:00]}  Nf6 {[%clk 0:02:57]} 2. c4 {[%clk 0:03:00]}  g6 {[%clk 0:02:57]} 3. Nc3 {[%clk 0:02:59]}  Bg7 {[%clk 0:02:58]} 4. e4 {[%clk 0:02:51]}  d6 {[%clk 0:02:58]} 5. Be2 {[%clk 0:02:51]}  O-O {[%clk 0:02:58]} 6. Be3 {[%clk 0:02:51]}  e5 {[%clk 0:02:55]} 7. Nf3 {[%clk 0:02:41]}  Bg4 {[%clk 0:02:55]} 8. dxe5 {[%clk 0:02:11]}  Bxf3 {[%clk 0:02:52]} 9. Bxf3 {[%clk 0:01:59]}  dxe5 {[%clk 0:02:52]} 10. Qxd8 {[%clk 0:01:59]}  Rxd8 {[%clk 0:02:53]} 11. Nd5 {[%clk 0:02:00]}  Na6 {[%clk 0:02:41]} 12. Bg5 {[%clk 0:01:25]}  Rd6 {[%clk 0:02:40]} 13. O-O-O {[%clk 0:01:24]}  Nxd5 {[%clk 0:02:26]} 14. cxd5 {[%clk 0:01:21]}  h5 {[%clk 0:02:05]} 15. Kb1 {[%clk 0:01:13]}  Kh7 {[%clk 0:02:03]} 16. Rc1 {[%clk 0:00:59]}  Bh6 {[%clk 0:02:02]} 17. Bxh6 {[%clk 0:00:52]}  Kxh6 {[%clk 0:02:03]} 18. Be2 {[%clk 0:00:52]}  Rc8 {[%clk 0:01:51]} 19. Bxa6 {[%clk 0:00:44]}  Rxa6 {[%clk 0:01:52]} 20. Rc3 {[%clk 0:00:43]}  c6 {[%clk 0:01:30]} 21. Rhc1 {[%clk 0:00:42]}  Kg5 {[%clk 0:01:29]} 22. h3 {[%clk 0:00:25]}  Rd8 {[%clk 0:01:19]} 23. dxc6 {[%clk 0:00:22]}  Rxc6 {[%clk 0:01:20]} 24. Rxc6 {[%clk 0:00:22]}  bxc6 {[%clk 0:01:21]} 25. Rxc6 {[%clk 0:00:22]}  Rd1+ {[%clk 0:00:57]} 26. Rc1 {[%clk 0:00:22]}  Rd2 {[%clk 0:00:56]} 27. Rc2 {[%clk 0:00:22]}  Rd1+ {[%clk 0:00:56]} 28. Rc1 {[%clk 0:00:23]}  Rd2 {[%clk 0:00:56]} 29. Rc2 {[%clk 0:00:23]}  Rd1+ {[%clk 0:00:57]} 30. Rc1 {[%clk 0:00:24]} 1/2-1/2


[Site "https://www.chess.com"]

[Event "Titled Tuesday Blitz December 27 Early 2022"]
[White "Derjabin, Ilja"]
[Black "Legenia, Artem"]
[WhiteFideId "14104768"]
[BlackFideId "14136945"]
[WhiteElo "2333"]
[BlackElo "2092"]
[Result "1-0"]
[Round "11"]
[TimeControl "180+2"]
[Date "2022.12.27"]
[WhiteClock "0:00:27"]
[BlackClock "0:00:50"]

1. d4 {[%clk 0:02:46]}  d5 {[%clk 0:02:58]} 2. c4 {[%clk 0:02:46]}  e6 {[%clk 0:02:59]} 3. Nc3 {[%clk 0:02:45]}  Nf6 {[%clk 0:02:59]} 4. Bg5 {[%clk 0:02:44]}  Be7 {[%clk 0:02:58]} 5. cxd5 {[%clk 0:02:44]}  exd5 {[%clk 0:02:58]} 6. e3 {[%clk 0:02:44]}  Nbd7 {[%clk 0:02:58]} 7. Bd3 {[%clk 0:02:44]}  a6 {[%clk 0:02:58]} 8. Nge2 {[%clk 0:02:33]}  h6 {[%clk 0:02:59]} 9. Bh4 {[%clk 0:02:32]}  O-O {[%clk 0:02:57]} 10. Qc2 {[%clk 0:02:31]}  Re8 {[%clk 0:02:57]} 11. O-O {[%clk 0:02:27]}  c6 {[%clk 0:02:51]} 12. f3 {[%clk 0:02:20]}  Nf8 {[%clk 0:02:41]} 13. Rad1 {[%clk 0:02:15]}  N6d7 {[%clk 0:02:21]} 14. Bxe7 {[%clk 0:02:13]}  Qxe7 {[%clk 0:02:21]} 15. e4 {[%clk 0:02:14]}  dxe4 {[%clk 0:02:11]} 16. fxe4 {[%clk 0:02:11]}  Nf6 {[%clk 0:02:10]} 17. e5 {[%clk 0:02:02]}  Nd5 {[%clk 0:02:10]} 18. Rf3 {[%clk 0:01:58]}  Ne6 {[%clk 0:02:07]} 19. Ne4 {[%clk 0:01:56]}  Nb4 {[%clk 0:02:03]} 20. Qd2 {[%clk 0:01:50]}  Nxd3 {[%clk 0:02:03]} 21. Qxd3 {[%clk 0:01:44]}  Ng5 {[%clk 0:02:03]} 22. Rg3 {[%clk 0:01:35]}  Bf5 {[%clk 0:01:48]} 23. N2c3 {[%clk 0:01:27]}  Nxe4 {[%clk 0:01:43]} 24. Nxe4 {[%clk 0:01:27]}  Bxe4 {[%clk 0:01:43]} 25. Qxe4 {[%clk 0:01:27]}  Rad8 {[%clk 0:01:40]} 26. Rf1 {[%clk 0:01:13]}  Qe6 {[%clk 0:01:34]} 27. Rf6 {[%clk 0:00:58]}  Qc4 {[%clk 0:01:31]} 28. Rg4 {[%clk 0:00:33]}  Kh8 {[%clk 0:01:19]} 29. Rf1 {[%clk 0:00:29]}  Qd5 {[%clk 0:00:50]} 30. Qxd5 {[%clk 0:00:27]}  Rxd5 {[%clk 0:00:50]} 31. Rxf7 {[%clk 0:00:27]} 1-0


[Site "https://www.chess.com"]

[Event "Titled Tuesday Blitz December 27 Early 2022"]
[White "Dilmukhametov, Artur"]
[Black "Guevara Sanchez, Erick Marvin"]
[WhiteFideId "24179922"]
[BlackFideId "6700136"]
[WhiteElo "2276"]
[BlackElo "2073"]
[Result "0-1"]
[Round "11"]
[TimeControl "180+2"]
[Date "2022.12.27"]
[WhiteClock "0:02:10"]
[BlackClock "0:02:31"]

1. d4 {[%clk 0:03:00]}  Nf6 {[%clk 0:02:57]} 2. Nc3 {[%clk 0:02:58]}  e6 {[%clk 0:02:55]} 3. e4 {[%clk 0:02:52]}  d5 {[%clk 0:02:55]} 4. e5 {[%clk 0:02:49]}  Nfd7 {[%clk 0:02:55]} 5. Nf3 {[%clk 0:02:48]}  c5 {[%clk 0:02:55]} 6. Be2 {[%clk 0:02:40]}  Nc6 {[%clk 0:02:55]} 7. a4 {[%clk 0:02:29]}  cxd4 {[%clk 0:02:55]} 8. Nxd4 {[%clk 0:02:28]}  Ncxe5 {[%clk 0:02:55]} 9. O-O {[%clk 0:02:23]}  Bc5 {[%clk 0:02:53]} 10. Bf4 {[%clk 0:02:21]}  Nc6 {[%clk 0:02:51]} 11. Nxc6 {[%clk 0:02:19]}  bxc6 {[%clk 0:02:50]} 12. Bd3 {[%clk 0:02:15]}  Qf6 {[%clk 0:02:47]} 13. Qg4 {[%clk 0:02:12]}  Nb6 {[%clk 0:02:35]} 14. Bg5 {[%clk 0:02:11]}  Qd4 {[%clk 0:02:32]} 15. Be3 {[%clk 0:02:10]}  Qxg4 {[%clk 0:02:31]} 0-1


[Site "https://www.chess.com"]